Cogmind - Beta 15 @@@ ROGUE MODE // 2025.09.16 @ 23:41:00 Player: bluemonk Result: Destroyed by G-47 Trooper with Particle Gun Performance ------------- Evolutions (2) 1000 Regions Visited (3) 600 Robots Destroyed (20) 100 Value Destroyed (632) 632 Prototype IDs (0) 0 Alien Tech Used (0) 0 Bonus (200) 200 TOTAL SCORE: 2532 Bonus ------- Pacifist 200 Cogmind --------- Core Integrity 0/550 Matter 250/300 Energy 34/100 System Corruption 2% Temperature Cool (9) Movement Walking (190) Ox1 Location -8/Materials Parts ------- > --- POWER (1) -------- (None) > --- PROPULSION (4) --- Improved Aluminum Leg Improved Aluminum Leg > --- UTILITY (3) ------ Small Storage Unit Heavy Armor Plating > --- WEAPON (3) ------- Spread Laser Spread Laser Mace > --- INVENTORY (8) ---- Light Armor Plating Peak State ------------ > --- POWER ------------ Ion Engine > --- PROPULSION ------- Carbon-fiber Leg Carbon-fiber Leg Carbon-fiber Leg Carbon-fiber Leg > --- UTILITY ---------- Small Storage Unit Heavy Armor Plating > --- WEAPON ----------- EM Shotgun Beam Rifle Mace > --- INVENTORY -------- Ion Engine Improved Aluminum Leg Improved Aluminum Leg Light Armor Plating Spread Laser Spread Laser [Rating: 27] Favorites ----------- Power Ion Engine Engine Ion Engine Propulsion Aluminum Leg Treads Light Treads Leg Aluminum Leg Utility Small Storage Unit Device Seismic Detector Storage Small Storage Unit Protection Light Armor Plating Weapon Beam Rifle Energy Gun Beam Rifle Impact Weapon Mace Build | -11 -10 -9 -8 ------- Run | Yrd Mat Mat Mat Slots Evolved 4 | . . 2 2 Power . | . . . . Propulsion 2 | . . 2 . Utility 1 | . . . 1 Weapon 1 | . . . 1 Parts Attached 30 | 6 1 17 6 Power 3 | 1 . 2 . Engine 3 | 1 . 2 . Core . | . . . . Reactor . | . . . . Propulsion 10 | 2 . 8 . Treads 2 | . . 2 . Leg 8 | 2 . 6 . Wheel . | . . . . Hover . | . . . . Flight . | . . . . Utility 9 | 1 1 4 3 Device 4 | . 1 2 1 Storage 1 | 1 . . . Processor . | . . . . Hackware . | . . . . Protection 4 | . . 2 2 Artifact . | . . . . Weapon 8 | 2 . 3 3 Energy Gun 7 | 2 . 3 2 Energy Cannon . | . . . . Ballistic Gun . | . . . . Ballistic Cannon . | . . . . Launcher . | . . . . Special Weapon . | . . . . Impact Weapon 1 | . . . 1 Slashing Weapon . | . . . . Piercing Weapon . | . . . . Special Melee Weapon . | . . . . Unidentified Prototypes . | . . . . Parts Lost 15 | . . 5 10 Power 3 | . . 1 2 Propulsion 4 | . . . 4 Utility 5 | . . 3 2 Weapon 3 | . . 1 2 Highest Loss Streak 10 | . . 2 10 To Critical Strikes . | . . . . Average Backups 6 | 2 6 7 5 Power 1 | . 1 1 . Propulsion 2 | 1 4 2 1 Utility . | . . . 1 Weapon 1 | . 1 1 1 Tool/Special . | . . . . Unused Backups 8 | . . 8 . Power 1 | . . 1 . Propulsion 3 | . . 3 . Utility 2 | . . 2 . Weapon 2 | . . 2 . Tool/Special . | . . . . Average Slot Usage (%) 92 | . 87 97 78 Engine 10 | . 14 11 6 Treads 2 | . . 3 . Leg 35 | . 28 39 28 Device 2 | . 2 2 3 Storage 11 | . 14 11 9 Protection 6 | . . 7 7 Energy Gun 21 | . 28 22 15 Impact Weapon 1 | . . . 8 Peak Build Rating 27 | 6 7 21 27 Average Rating 13 | 4 6 13 21 On Entrance 8 | . 6 7 20 Naked Turns . | . . . . Heaviest Build 33 | 13 14 21 33 Greatest Support 60 | 20 20 60 60 Greatest Overweight (x) 2 | . . . 2 Average Overweight (x) . | . . . . Largest Inventory Capacity 8 | 8 8 8 8 Average Capacity 7 | 6 8 8 8 Most Carried 8 | 6 7 8 8 Average Carried 6 | 2 6 7 6 Final Capacity 8 | 8 8 8 8 Final Carried 7 | 6 7 6 1 Class Distribution -------------------- 100% | Mutant Dominant Class ---------------- Mutant | -10/Materials Mutant | -9/Materials Mutant | -8/Materials Resources | -11 -10 -9 -8 ----------- Run | Yrd Mat Mat Mat Matter Collected 508 | 210 . 258 40 Remotely . | . . . . Salvage Created 772 | . . 590 182 Parts 41 | . . 39 2 Haulers Intercepted 1 | . . 1 . Recyclers Shooed . | . . . . Parts Field Recycled . | . . . . Retrieved Matter . | . . . . Parts Self-Destructed . | . . . . Prevented . | . . . . Kills | -11 -10 -9 -8 ------- Run | Yrd Mat Mat Mat Combat Hostiles Destroyed 16 | . . 12 4 Melee 2 | . . . 2 Guns 10 | . . 10 . AOE 1 | . . 1 . Classes Destroyed 7 | . . 7 . Builder 1 | . . 1 . Hauler 1 | . . 1 . Watcher 2 | . . 2 . Swarmer 3 | . . 3 . Grunt 5 | . . 3 2 Duelist 2 | . . 1 1 Sentry 6 | . . 5 1 Best Kill Streak 5 | . . 5 2 Combat Bots Only 3 | . . 3 2 Max Kills in Single Turn 1 | . . 1 1 Gunslinging . | . . . . Exploded 1 | . . 1 . Melee 1 | . . . 1 Uniques/NPCs Destroyed . | . . . . Combat | -11 -10 -9 -8 -------- Run | Yrd Mat Mat Mat Hostile Shots Fired 221 | . . 101 120 Missed 66 | . . 33 33 Hits 155 | . . 68 87 Melee 9 | . . . 9 Projectile 146 | . . 68 78 Critical Strikes 8 | . . 6 2 Damage Taken 2452 | . . 893 1559 Core 684 | . . 125 559 Absorbed by Shields . | . . . . Regen/Repaired (Parts) 77 | . . 77 . Core Remaining (%) 89 | 100 100 68 . Volleys Fired 82 | . . 73 9 Largest 2 | . . 2 2 Hottest 130 | . . 101 130 Shots Fired 151 | . . 133 18 Gun 151 | . . 133 18 Cannon . | . . . . Launcher . | . . . . Special . | . . . . Kinetic . | . . . . Thermal 111 | . . 100 11 Explosive . | . . . . Electromagnetic 40 | . . 33 7 Robot Hit Streak 8 | . . 8 8 Robot Miss Streak 5 | . . 5 2 Penetration Max . | . . . . Secondary Targets . | . . . . Shots Hit Robots 116 | . . 86 30 Core Hits 43 | . . 28 15 Critical Kills 1 | . . . 1 Critical Parts Destroyed . | . . . . Critical Strikes 8 | . . 5 3 Burn 6 | . . 5 1 Smash 2 | . . . 2 Melee Attacks 25 | . . . 25 Impact 25 | . . . 25 Slashing . | . . . . Piercing . | . . . . Sneak Attacks . | . . . . Combat Hostiles . | . . . . Follow-up Attacks . | . . . . Damage Inflicted 2182 | . . 1265 917 Guns 1378 | . . 1191 187 Cannons . | . . . . Explosions 252 | . . 74 178 Melee 552 | . . . 552 Ramming . | . . . . Kinetic . | . . . . Thermal 1160 | . . 863 297 Explosive . | . . . . Electromagnetic 470 | . . 402 68 Impact 552 | . . . 552 Slashing . | . . . . Piercing . | . . . . Highest Corruption 6 | . 6 . 2 Average Corruption 3 | . 5 . 2 Corruption Purged . | . . . . Corruption Blocked . | . . . . Effects 3 | . 1 . 2 Matter Fused 3 | . 1 . 2 Overload Shots . | . . . . Overflow Damage 46 | . . . 46 Projectiles . | . . . . Explosions . | . . . . Melee 46 | . . . 46 Knockbacks 1 | . . . 1 Impact 1 | . . . 1 Kinetic . | . . . . Secondary . | . . . . Self-Inflicted Damage 85 | . . 57 28 Shots 3 | . . 2 1 Rammed . | . . . . Targets Rammed . | . . . . Kicked . | . . . . Crushed . | . . . . Highest Temperature 377 | . . 377 117 Average Temperature 110 | . . 123 40 Received Heat Transfer 1050 | . . 330 720 Effects 4 | . . 4 . Interference 3 | . . 3 . Matter Decay 1 | . . 1 . Siege Activations . | . . . . Martial Activations . | . . . . Shielding Activations . | . . . . Robots Disrupted . | . . . . Combat Hostiles . | . . . . Robots Corrupted 2 | . . . 2 Combat Hostiles 2 | . . . 2 Parts Fried 4 | . . 1 3 Impact Corruptions 5 | . . . 5 Robots Melted 1 | . . 1 . Combat Hostiles 1 | . . 1 . Parts Melted 6 | . . 6 . Heat Transferred 2983 | . . 2536 447 Parts Sabotaged . | . . . . Parts Stolen . | . . . . Parts Stripped . | . . . . Power Chain Reactions 3 | . . 2 1 Alert | -11 -10 -9 -8 ------- Run | Yrd Mat Mat Mat Maximum Alert Level . | . . . . Low Security (%) 100 | 100 100 100 100 Level 1 . | . . . . Level 2 . | . . . . Level 3 . | . . . . Level 4 . | . . . . Level 5 . | . . . . High Security . | . . . . Max Security . | . . . . Peak Influence 102 | . 10 102 42 Initial 26 | . . . 26 Average 25 | . . 37 11 Influence Increases 525 | . 10 393 122 Destroy 0b10 Robot/C 320 | . . 240 80 Destroy 0b10 Robot/NC 20 | . . 20 . Destroy Leader 106 | . . 76 30 Trap Triggered on 0b10 10 | . 10 . . Successful Hack 3 | . . 3 . Destroy Structure 21 | . . 9 12 Lose Combat Pursuer 45 | . . 45 . Influence Decreases 485 | . 10 331 144 Entered New Map 36 | . . . 36 Time Decay 357 | . 10 291 56 Lost Part 92 | . . 40 52 Squads Dispatched 2 | . 1 1 . Investigation 1 | . 1 . . Extermination . | . . . . Reinforcement 1 | . . 1 . Assault . | . . . . Garrison . | . . . . Intercept . | . . . . Searches Triggered . | . . . . Construction Impeded . | . . . . Haulers Reinforced . | . . . . Active Scanning Responses . | . . . . Cargo Convoy Interrupts . | . . . . Stealth | -11 -10 -9 -8 --------- Run | Yrd Mat Mat Mat Distress Signals 4 | . . 4 . Communications Jammed . | . . . . Distress Signals . | . . . . Times Spotted 36 | . 1 28 7 Peak Tracking Total 6 | . 2 5 6 Tactical Retreats 3 | . . 3 . Traps | -11 -10 -9 -8 ------- Run | Yrd Mat Mat Mat Traps Triggered 4 | . 3 . 1 Indirectly . | . . . . Trap Hack Attempts . | . . . . Triggered . | . . . . Disarmed . | . . . . Reprogrammed 4 | . 4 . . Reused 1 | . 1 . . Traps Extracted . | . . . . Installed . | . . . . Triggered 1 | . 1 . . Machines | -11 -10 -9 -8 ---------- Run | Yrd Mat Mat Mat Machines Disabled . | . . . . Max in Single Turn . | . . . . Machines Repaired . | . . . . Machines Dismantled . | . . . . Machines Sabotaged . | . . . . Overloaded Fab Kills . | . . . . Hacking | -11 -10 -9 -8 --------- Run | Yrd Mat Mat Mat Machines Accessed 5 | . 2 3 . Terminals 3 | . 1 2 . Fabricators . | . . . . Repair Stations 1 | . . 1 . Recycling Units 1 | . 1 . . Scanalyzers . | . . . . Garrison Access . | . . . . Total Hacks 16 | . 8 8 . Successful 9 | . 5 4 . Failed 7 | . 3 4 . Catastrophic . | . . . . Database Lockouts . | . . . . Manual . | . . . . Terminals 9 | . 5 4 . Fabricators . | . . . . Repair Stations 4 | . . 4 . Recycling Units 3 | . 3 . . Scanalyzers . | . . . . Garrison Access . | . . . . Terminal Hacks 4 | . 3 1 . Alert Level 2 | . 1 1 . Locate Traps 1 | . 1 . . Reprogram Traps 1 | . 1 . . Fabricator Hacks . | . . . . Repair Station Hacks 3 | . . 3 . Scan Component 2 | . . 2 . Repair 1 | . . 1 . Recycling Unit Hacks 2 | . 2 . . Process 1 | . 1 . . Report Inventory 1 | . 1 . . Scanalyzer . | . . . . Garrison Access Hacks . | . . . . Unauthorized Hacks . | . . . . Terminals . | . . . . Fabricators . | . . . . Repair Stations . | . . . . Recycling Units . | . . . . Scanalyzers . | . . . . Garrison Access . | . . . . Data Cores Recovered . | . . . . Used . | . . . . Hacking Detections 5 | . 2 3 . Full Trace Events . | . . . . Feedback Events . | . . . . Feedback Blocked . | . . . . Robot Schematics Acquired . | . . . . Robots Built . | . . . . Authchips . | . . . . Time . | . . . . Total Robot Build Rating . | . . . . Part Schematics Acquired . | . . . . Parts Built . | . . . . Authchips . | . . . . Time . | . . . . Total Part Build Rating . | . . . . Parts Repaired 1 | . . 1 . Time 32 | . . 32 . Parts Recycled . | . . . . Recycled Matter 115 | . 115 . . Retrieved Matter . | . . . . Retrieved Components . | . . . . Parts Scanalyzed . | . . . . Part Schematics Acquired . | . . . . Parts Damaged . | . . . . Bothacking | -11 -10 -9 -8 ------------ Run | Yrd Mat Mat Mat Used RIF Installer . | . . . . Robots Hacked . | . . . . Non-combat . | . . . . Combat . | . . . . Robot Hacks Applied . | . . . . Relay Couplers Released . | . . . . Fabnet Peak Effective % . | . . . . Robots Rewired . | . . . . Allies Hacked . | . . . . Hacks Repelled . | . . . . Allies | -11 -10 -9 -8 -------- Run | Yrd Mat Mat Mat Total Allies . | . . . . Largest Group . | . . . . Highest-Rated Group . | . . . . Highest-Rated Ally . | . . . . Total Orders . | . . . . Ally Attacks . | . . . . Total Damage . | . . . . Kills . | . . . . Allies Corrupted . | . . . . Allies Melted . | . . . . Intel | -11 -10 -9 -8 ------- Run | Yrd Mat Mat Mat Active Infowar (turns) 130 | . 39 91 . Terrain 21 | . . 21 . Seismic 109 | . 39 70 . Robot Analysis Total . | . . . . Derelict Logs Recovered . | . . . . Drone Launches . | . . . . Drone Recoveries . | . . . . Exploration | -11 -10 -9 -8 ------------- Run | Yrd Mat Mat Mat Turns Passed 1338 | 67 196 838 237 Spaces Moved 774 | 54 162 463 95 Core 20 | 18 . . 2 Treads . | . . . . Legs 754 | 36 162 463 93 Wheels . | . . . . Hover . | . . . . Flight . | . . . . Fastest Speed 50 | 50 120 120 120 Average Speed 118 | 96 120 120 122 Slowest Speed 190 | 120 120 120 190 Overloaded Moves . | . . . . Propulsion Burnouts . | . . . . Robots Hopped . | . . . . Potential Cave-ins . | . . . . Cave-ins Triggered . | . . . . Exploration Rate (%) 20 | 3 30 41 8 Regions Visited 3 Branch Regions . Pre-discovered Areas . | . . . . Known Exits Taken . | . . . . Unknown Exits Taken 3 | 1 1 1 . Scrap Searched . | . . . . Spaces Dug . | . . . . Terrain Destroyed 23 | . . 9 14 Melee . | . . . . Projectile . | . . . . AOE 23 | . . 9 14 Terrain Rammed . | . . . . Walls Destroyed . | . . . . Machines Disabled . | . . . . Actions | -11 -10 -9 -8 --------- Run | Yrd Mat Mat Mat Total 1002 | 67 163 618 154 Wait 41 | . . 33 8 Move 771 | 53 161 462 95 Hop . | . . . . Pick Up 28 | 8 1 14 5 Fast Attach 9 | 4 1 4 . Attach 16 | 2 . 4 10 Detach 1 | . . . 1 Swap 10 | . . 10 . Drop 19 | . . 18 1 Fire 82 | . . 73 9 Melee 25 | . . . 25 Ram . | . . . . Kick . | . . . . Crush . | . . . . Escape Stasis . | . . . . Rewire . | . . . . Trap . | . . . . Miscellaneous . | . . . . Route ------- -11/Scrapyard -10/Materials -9/Materials -8/Materials History --------- Turn | Location | Event 8 | -11/Scrapyard | Discovered new exit (range 14) 68 | -11/Scrapyard | Entered Materials 186 | -10/Materials | Discovered new exit (range 10) 264 | -10/Materials | Entered another Materials area 264 | -9/Materials | Evolved 2 slots: Propulsion x2 300 | -9/Materials | Build established: Mutant 563 | -9/Materials | Repaired Imp. Aluminum Leg 1029 | -9/Materials | Discovered new exit (range 16) 1102 | -9/Materials | Entered another Materials area 1102 | -8/Materials | Evolved 2 slots: Utility x1, Weapon x1 1300 | -8/Materials | Core integrity fell below 50% 1313 | -8/Materials | Core integrity fell below 20% 1327 | -8/Materials | Lost 10 parts (2p4n2u2w) 1339 | -8/Materials | Destroyed by G-47 Trooper with Particle Gun Last Messages --------------- Beam Rifle destroyed. The unstable cave ceiling collapses. Carbon-fiber Leg destroyed. Destroyed Carbon-fiber Leg. G-50 Soldier system corrupted by crushing effect. Carbon-fiber Leg destroyed. Ion Engine destroyed. G-50 Soldier IFF system glitched. Critical hit (Burn: +37). Hrd. Light Armor Plating destroyed. G-50 Soldier destroyed. G-47 Trooper destroyed. Destroyed Lgt. Nuclear Core. U-05 Engineer builds a Wall. G-47 Trooper suffers critical hit (Smash). G-47 Trooper destroyed. Destroyed Imp. Heat Sink. Critical hit (Burn: +37). U-05 Engineer builds a Wall. Map ----- +----------------------------------------------------+ | ?????????????????????????????????????????????????? | | ?????????????????????????????????????????????????? | | ?????????????????????????????????????????????????? | | ?????????????????????????????????????????????????? | | ?????????????????????????????????????????????????? | | ?????????????????????????????????????????????????? | | ?????????????????????????????????????????????????? | | ?????????????????????????????????????????????????? | | ?????????????????????????????????????????????????? | | ?????????????????????????????????????????????????? | | ??????????????????????????####???????????????????? | | ????????????????????? ???? #???????????????????? | | ????????????????????"" ??? #???????????????????? | | ????????????????????"" """ ????????????????????? | | ????????????????????"" """ ????????????#???????? | | ?????????????????????" """ ?????????"" #???????? | | ?????????????????????" """ ?????????""" #???????? | | ?????????????????????? ????????? #???????? | | ??????????????????#######u;##???????? ????????? | | ?????????????????# # ; #????????!! ?????????? | | ?????????????????# """" ; ;##????????! ?????????? | | ?????????????????# """" ; ; #???????? ??????????? | | ?????????????????# """" ;=;#??????###+###????????? | | ?????????????????# #g######### #????????? | | ?????????????????# "" #% #????????? | | ????????????????## """"%g@ ^ " [#????????? | | ????????????????# """"[# ^ #????????? | | ????????????????## ########+## #????????? | | ?????????????????# """" ## ## ##????????? | | ?????????????????# """" ## """ ## #?????????? | | ?????????????????# """" ## """ ## ##########? | | ?????????????????# ## """ ## # #? | | ??????????????????######## ## # """ "" #? | | ?????????????????????????# """ ## # """ """#? | | ?????????????????????????# """ ## # """ S"#? | | ?????????????????????????# """ ## + #? | | ?????????????????????????# ## # #? | | ?????????????????????????#######?### # #? | | ???????????????????????????????????# # [[ #? | | ???????????????????????????????????# # [% #? | | ???????????????????????????????????# ##########? | | ???????????????????????????????????# #?????????? | | ???????????????????????????????????# #?????????? | | ???????????????????????????????????#####?????????? | | ?????????????????????????????????????????????????? | | ?????????????????????????????????????????????????? | | ?????????????????????????????????????????????????? | | ?????????????????????????????????????????????????? | | ?????????????????????????????????????????????????? | | ?????????????????????????????????????????????????? | +----------------------------------------------------+ Best States ------------- Heat Dissipation 38 Energy Generation 12 Energy Capacity 265 Matter Stores 300 Matter Capacity 300 Sight Range 16 Terrain Scan Range 14 Terrain Scan Density 10 Armor Coverage 600 Evasion (%) 55 Recoil Reduction 2 Particle Charging 15 Item Schematics ----------------- None Robot Schematics ------------------ None Fabricated ------------ Nothing Repaired ---------- Imp. Aluminum Leg | 23% | -9/Materials Alien Tech Used ----------------- None Achievements -------------- None Challenges ------------ None Game ------ Seed HoverSegregatorGreatsword Manual? 0 Play Time 00:21:27 Cumulative 33.2 hours Start 2025.09.16 @ 23:20:40 End 2025.09.16 @ 23:41:00 Sessions 1 Manual Loads 0 Difficulty Rogue Special Mode None Game No. 55 Rogue 55 Adventurer 0 Explorer 0 Win Type - Total 0 Types 0/0/0/0/0/0/0/0/0/0 Lore% 13 Gallery% 31 Achievement% 27 Wizard Run 0 Options --------- Layout 1 ASCII 0 Keyboard 0 Movement Numpad Keybinds 0 Fullscreen 1 Font 24/Smallcaps Map View 50x35 Zoom Use 0% Tactical HUD 0 Map Filters NONE Filters NONE Steam 1 RUN: 42c4cbaf-db66-412b-8e7a-502d2bd5706e